Cogmind - Beta 14 *** ADVENTURER MODE // 2024.08.07 @ 11:31:27 Player: AnotherZach Result: Destroyed by G-67 Veteran with Field Laser Performance ------------- Evolutions (5) 2500 Regions Visited (5) 1000 Robots Destroyed (91) 455 Value Destroyed (3053) 3053 Prototype IDs (28) 560 Alien Tech Used (0) 0 Bonus (816) 816 TOTAL SCORE: 8384 Bonus ------- High Alert Combat Kills 559 Follower Combat Kills 569 Registered with UFD 300 Friendly Fire -612 Cogmind --------- Core Integrity 0/1000 Matter 276/300 Energy 350/350 System Corruption 7% Temperature Cool (9) Movement Core (700) Ox13 Location -5/Factory Parts ------- > --- POWER (2) -------- Cooled Fission Core > --- PROPULSION (6) --- (None) > --- UTILITY (6) ------ Scrap Suit Large Storage Unit Improved Hacking Suite Advanced System Restoration Module > --- WEAPON (3) ------- (None) > --- INVENTORY (15) --- Micro Fission Core Overtuned Huge Scrapsphere Advanced Heat Sink Compact Matter Pod (150) Improved Medium Armor Plating Reflective Plating Remote Force Field System Shield Advanced Field Recycling Unit (60) Improved Arc Projector Overtuned Beamcaster Powered Cannon Peak State ------------ > --- POWER ------------ Cooled Deuterium Engine Neutrino Core > --- PROPULSION ------- Overtuned Huge Scrapsphere Overtuned Huge Scrapsphere Overtuned Huge Scrapsphere > --- UTILITY ---------- Scrap Suit Advanced Heat Sink Humpback Improved Powered Armor > --- WEAPON ----------- Overtuned Beamcaster Gauss Rifle Overtuned Coil Gun > --- INVENTORY -------- Neutrino Core Cooled Fission Core Overtuned Huge Scrapsphere Scrap Suit Advanced Heat Sink Large Storage Unit Compact Matter Pod Improved Sensor Array Improved Target Analyzer Matter Filter Phase Shifter Layered Light Armor Plating Hacking Suite Improved Hacking Suite System Shield System Shield Improved System Shield Authchip [R/Combat] A0-MCA's Component Scanner High-powered Tractor Beam Advanced Field Recycling Unit Advanced Drone Bay Tesla Rifle Variable Charge Gun Powered Cannon Gauss Rifle Gauss Rifle Slug Cannon Heavy Missile Launcher CPS Tube CPS Tube [Rating: 100] Favorites ----------- Power Ion Engine Engine Ion Engine Power Core Neutrino Core Propulsion Medium Treads Treads Medium Treads Wheel Overtuned Huge Scrapsphere Utility Humpback Device Seismic Detector Storage Humpback Processor Advanced Targeting Computer Hackware Hacking Suite Protection Improved Powered Armor Weapon Gauss Rifle Energy Gun Overtuned Beamcaster Ballistic Gun Gauss Rifle Launcher Heavy Missile Launcher Special Weapon Mining Laser Slashing Weapon Greatsword Build | -11 -10 -10 -7 -7 -5 ------- Run | Yrd Mat Sub Rec Scr Fac Slots Evolved 10 | . . . . . 10 Power 1 | . . . . . 1 Propulsion 4 | . . . . . 4 Utility 4 | . . . . . 4 Weapon 1 | . . . . . 1 Parts Attached 115 | 7 5 7 7 18 71 Power 13 | 1 . . 2 2 8 Engine 6 | 1 . . 2 2 1 Core 7 | . . . . . 7 Reactor . | . . . . . . Propulsion 28 | 2 . 1 2 11 12 Treads 14 | . . . 2 8 4 Leg . | . . . . . . Wheel 14 | 2 . 1 . 3 8 Hover . | . . . . . . Flight . | . . . . . . Utility 38 | 2 1 1 1 3 30 Device 20 | 1 . 1 1 . 17 Storage 4 | 1 1 . . 1 1 Processor 3 | . . . . 2 1 Hackware 5 | . . . . . 5 Protection 6 | . . . . . 6 Artifact . | . . . . . . Weapon 36 | 2 4 5 2 2 21 Energy Gun 6 | 2 . . . . 4 Energy Cannon . | . . . . . . Ballistic Gun 21 | . 3 3 2 2 11 Ballistic Cannon . | . . . . . . Launcher 4 | . . . . . 4 Special Weapon 3 | . 1 2 . . . Impact Weapon . | . . . . . . Slashing Weapon 2 | . . . . . 2 Piercing Weapon . | . . . . . . Special Melee Weapon . | . . . . . . Unidentified Prototypes 3 | . . 1 . . 2 Parts Lost 8 | . . . . . 8 Power 1 | . . . . . 1 Propulsion 3 | . . . . . 3 Utility 2 | . . . . . 2 Weapon 2 | . . . . . 2 Highest Loss Streak 5 | . . . . . 5 To Critical Strikes 1 | . . . . . 1 Average Slot Usage (%) 88 | . 100 100 100 90 75 Engine 11 | . 14 14 14 13 3 Core 1 | . . . . . 6 Treads 19 | . . . 14 26 13 Wheel 8 | . 28 28 13 1 11 Device 5 | . 14 14 14 . 11 Storage 12 | . 14 14 14 14 5 Processor 2 | . . . . 4 . Ballistic Gun 23 | . 26 20 28 28 9 Peak Build Rating 100 | 7 11 15 16 32 100 Average Rating 34 | 5 10 12 15 24 81 On Entrance 13 | . 7 11 15 16 32 Naked Turns . | . . . . . . Heaviest Build 264 | 15 32 32 33 213 264 Greatest Support 138 | 26 26 30 40 48 138 Greatest Overweight (x) 7 | . 1 1 1 7 6 Average Overweight (x) 1 | . . . . 1 2 Largest Inventory Capacity 35 | 8 15 15 15 35 35 Average Capacity 25 | 7 13 15 15 27 31 Most Carried 35 | 7 15 15 15 35 35 Average Carried 22 | 3 12 14 14 22 28 Final Capacity 35 | 8 15 15 15 35 15 Final Carried 35 | 7 15 15 15 35 14 Class Distribution -------------------- 35% | Hauler-Mutant 19% | Commander-Mutant 17% | Mutant 6% | Derelict-Mutant 5% | Scavenger-Mutant 5% | Hauler-Scrapper 5% | Scavenger-Scrapper Dominant Class ---------------- Mutant | -10/Materials Mutant | -10/Subcaves Scavenger-Mutant | -7/Recycling Hauler-Mutant | -7/Scraptown Derelict-Mutant | -5/Factory Resources | -11 -10 -10 -7 -7 -5 ----------- Run | Yrd Mat Sub Rec Scr Fac Matter Collected 3656 | 270 66 203 301 300 2516 Remotely 422 | . . . . . 422 Salvage Created 4666 | 124 76 160 310 . 3996 Parts 225 | 5 13 12 9 . 186 Haulers Intercepted 2 | . . . . . 2 Recyclers Shooed 8 | . . . 2 . 6 Parts Field Recycled 76 | . . . . . 76 Retrieved Matter 402 | . . . . . 402 Parts Self-Destructed 18 | . . 18 . . . Prevented . | . . . . . . Kills | -11 -10 -10 -7 -7 -5 ------- Run | Yrd Mat Sub Rec Scr Fac Combat Hostiles Destroyed 51 | . . 5 3 . 43 Melee 3 | . . . . . 3 Guns 34 | . . 5 3 . 26 AOE 14 | . . . . . 14 Classes Destroyed 16 | 2 1 3 1 . 9 Worker 7 | . . . . . 7 Builder 7 | . . . . . 7 Tunneler 2 | 1 1 . . . . Hauler 2 | . . . . . 2 Recycler 11 | 1 . . 2 . 8 Mechanic 2 | . . . . . 2 Operator 1 | . . . . . 1 Watcher 6 | . 3 . . . 3 Swarmer 8 | . . 4 . . 4 Grunt 22 | . . . . . 22 Sentry 5 | . . 1 2 . 2 Demolisher 1 | . . . 1 . . Hunter 7 | . . . . . 7 Programmer 8 | . . . . . 8 Cobbler 1 | . . 1 . . . Scrapoid 3 | . . . . . 3 Best Kill Streak 18 | 1 1 3 4 . 18 Combat Bots Only 9 | . . 3 2 . 9 Max Kills in Single Turn 4 | 1 1 1 1 . 4 Gunslinging . | . . . . . . Exploded 3 | . . . . . 3 Melee 1 | . . . . . 1 Uniques/NPCs Destroyed . | . . . . . . Combat | -11 -10 -10 -7 -7 -5 -------- Run | Yrd Mat Sub Rec Scr Fac Hostile Shots Fired 408 | . . 62 78 . 268 Missed 126 | . . 35 29 . 62 Damage Taken 4694 | . . 197 369 . 4128 Core 1115 | . . 32 70 . 1013 Absorbed by Shields 65 | . . . . . 65 Ignored by Resistances 1174 | . . 66 123 . 985 Regen/Repaired (Parts) 27 | . . . . . 27 Core Remaining (%) 79 | 100 . . . 59 . Volleys Fired 164 | 3 9 30 20 . 102 Largest 3 | 2 2 2 2 . 3 Hottest 258 | 80 123 123 51 . 258 Shots Fired 377 | 6 18 50 40 . 263 Gun 352 | 6 17 38 40 . 251 Cannon . | . . . . . . Launcher 12 | . . . . . 12 Special 13 | . 1 12 . . . Kinetic 308 | . 17 38 40 . 213 Thermal 51 | . 1 12 . . 38 Explosive 12 | . . . . . 12 Electromagnetic 6 | 6 . . . . . Robot Hit Streak 27 | 6 7 6 13 . 27 Robot Miss Streak 3 | . 3 1 1 . 3 Penetration Max 1 | . . . . . 1 Secondary Targets 4 | . . . . . 4 Max Gunslinging Chain 1 | . . . . . 1 Shots Hit Robots 290 | 6 8 27 33 . 216 Core Hits 180 | 3 4 10 15 . 148 Critical Kills 4 | . . . . . 4 Critical Parts Destroyed 1 | . . . . . 1 Critical Strikes 10 | . . . . . 10 Burn 5 | . . . . . 5 Destroy 5 | . . . . . 5 Melee Attacks 31 | . . . . . 31 Impact . | . . . . . . Slashing 31 | . . . . . 31 Piercing . | . . . . . . Sneak Attacks 8 | . . . . . 8 Combat Hostiles . | . . . . . . Follow-up Attacks . | . . . . . . Damage Inflicted 10062 | 122 121 431 493 . 8895 Guns 5707 | 81 121 407 493 . 4605 Cannons . | . . . . . . Explosions 2844 | 41 . . . . 2803 Melee 1487 | . . . . . 1487 Ramming . | . . . . . . Kinetic 4642 | . 121 407 493 . 3621 Thermal 1111 | 41 . 24 . . 1046 Explosive 2741 | . . . . . 2741 Electromagnetic 81 | 81 . . . . . Impact . | . . . . . . Slashing 1487 | . . . . . 1487 Piercing . | . . . . . . Highest Corruption 7 | . . . . . 7 Average Corruption 4 | . . . . . 4 Corruption Purged 8 | . . . . . 8 Corruption Blocked . | . . . . . . Effects 57 | . . . . . 57 Message Errors 9 | . . . . . 9 Matter Fused 15 | . . . . . 15 Heat Flow Errors 7 | . . . . . 7 Energy Discharges 8 | . . . . . 8 Parts Fused 3 | . . . . . 3 Data Loss (minor) 8 | . . . . . 8 Data Loss (major) 3 | . . . . . 3 Misfires 1 | . . . . . 1 Weapon Failures 3 | . . . . . 3 Overload Shots 3 | . . . . . 3 Overflow Damage 558 | 11 . . . . 547 Projectiles . | . . . . . . Explosions 85 | 11 . . . . 74 Melee 473 | . . . . . 473 Knockbacks . | . . . . . . Impact . | . . . . . . Kinetic . | . . . . . . Secondary . | . . . . . . Self-Inflicted Damage 106 | . . . . . 106 Shots 2 | . . . . . 2 Rammed . | . . . . . . Targets Rammed . | . . . . . . Kicked . | . . . . . . Crushed . | . . . . . . Highest Temperature 732 | 36 40 1 50 . 732 Average Temperature 87 | 17 9 1 15 . 105 Received Heat Transfer 1167 | . . 126 114 . 927 Effects 17 | . . . . . 17 Shutdowns 4 | . . . . . 4 Energy Bleed 1 | . . . . . 1 Interference 1 | . . . . . 1 Short Circuit 1 | . . . . . 1 Damage (minor) 2 | . . . . . 2 Damage (major) 4 | . . . . . 4 Damage (core) 4 | . . . . . 4 Siege Activations . | . . . . . . Robots Corrupted . | . . . . . . Combat Hostiles . | . . . . . . Parts Fried . | . . . . . . Impact Corruptions . | . . . . . . Robots Melted . | . . . . . . Combat Hostiles . | . . . . . . Parts Melted 9 | . . . . . 9 Heat Transferred 2285 | 50 . 50 . . 2185 Parts Sabotaged . | . . . . . . Parts Stolen . | . . . . . . Parts Stripped . | . . . . . . Power Chain Reactions 1 | 1 . . . . . Alert | -11 -10 -10 -7 -7 -5 ------- Run | Yrd Mat Sub Rec Scr Fac Peak Influence 1289 | 10 40 . 154 . 1289 Initial 48 | . 5 . 48 . . Average 256 | 4 20 . 62 . 393 Maximum Alert Level 4 | . . . . . 4 Low Security (%) 74 | 100 100 . 100 . 57 Level 1 2 | . . . . . 3 Level 2 10 | . . . . . 16 Level 3 9 | . . . . . 15 Level 4 4 | . . . . . 6 Level 5 . | . . . . . . High Security . | . . . . . . Max Security . | . . . . . . Squads Dispatched 20 | . . . . . 20 Investigation 5 | . . . . . 5 Extermination 3 | . . . . . 3 Reinforcement 8 | . . . . . 8 Assault 3 | . . . . . 3 Garrison 1 | . . . . . 1 Intercept . | . . . . . . Searches Triggered . | . . . . . . Construction Impeded 4 | . . . . . 4 Haulers Reinforced 1 | . . . . . 1 Active Scanning Responses . | . . . . . . Cargo Convoy Interrupts . | . . . . . . Stealth | -11 -10 -10 -7 -7 -5 --------- Run | Yrd Mat Sub Rec Scr Fac Distress Signals 1 | . . . . . 1 Communications Jammed . | . . . . . . Distress Signals . | . . . . . . Times Spotted 90 | . 3 10 5 . 72 Peak Tracking Total 10 | . 2 3 2 . 10 Tactical Retreats 1 | . . 1 . . . Traps | -11 -10 -10 -7 -7 -5 ------- Run | Yrd Mat Sub Rec Scr Fac Traps Triggered 1 | . . . . . 1 Indirectly . | . . . . . . Trap Hack Attempts . | . . . . . . Triggered . | . . . . . . Disarmed . | . . . . . . Reprogrammed . | . . . . . . Reused . | . . . . . . Traps Extracted . | . . . . . . Installed . | . . . . . . Triggered . | . . . . . . Most Traps Carried 3 | . . . . 3 1 Machines | -11 -10 -10 -7 -7 -5 ---------- Run | Yrd Mat Sub Rec Scr Fac Machines Disabled 15 | . . 4 . . 11 Max in Single Turn 3 | . . 1 . . 3 Garrison Access 2 | . . . . . 2 Machines Repaired . | . . . . . . Machines Dismantled . | . . . . . . Machines Sabotaged . | . . . . . . Overloaded Fab Kills . | . . . . . . Hacking | -11 -10 -10 -7 -7 -5 --------- Run | Yrd Mat Sub Rec Scr Fac Machines Accessed 29 | . 7 1 9 4 8 Terminals 12 | . 5 . 3 . 4 Fabricators 1 | . . . . . 1 Repair Stations . | . . . . . . Recycling Units 8 | . 2 . 4 . 2 Scanalyzers . | . . . . . . Garrison Access 1 | . . . . . 1 Total Hacks 120 | . 19 1 49 21 30 Successful 80 | . 10 1 34 21 14 Failed 40 | . 9 . 15 . 16 Catastrophic 7 | . 2 . 3 . 2 Database Lockouts . | . . . . . . Manual 56 | . 18 . 16 . 22 Terminals 34 | . 15 . 8 . 11 Fabricators 14 | . . . . . 14 Repair Stations . | . . . . . . Recycling Units 25 | . 4 . 17 . 4 Scanalyzers . | . . . . . . Garrison Access 1 | . . . . . 1 Terminal Hacks 52 | . 2 1 25 21 3 Record 44 | . . . 24 20 . Part Schematic 1 | . . . 1 . . Robot Schematic 3 | . 1 . . . 2 Robot Analysis 1 | . 1 . . . . Recycling Unit Index 1 | . . . . . 1 Derelict Proto ID Bank 2 | . . 1 . 1 . Fabricator Hacks 3 | . . . . . 3 Load Schematic 2 | . . . . . 2 Build 1 | . . . . . 1 Repair Station Hacks . | . . . . . . Recycling Unit Hacks 2 | . 1 . 1 . . Retrieve Components 2 | . 1 . 1 . . Scanalyzer . | . . . . . . Garrison Access Hacks 1 | . . . . . 1 Seal Access 1 | . . . . . 1 Unauthorized Hacks 22 | . 7 . 8 . 7 Terminals 6 | . 4 . . . 2 Track 1 | . 1 . . . . Botnet 4 | . 3 . . . 1 Search 1 | . . . . . 1 Fabricators 3 | . . . . . 3 Report 1 | . . . . . 1 Prioritize 1 | . . . . . 1 Liberate 1 | . . . . . 1 Repair Stations 2 | . . . . . 2 Recycling Units 11 | . 3 . 8 . . Monitor 1 | . . . 1 . . Reject 5 | . 1 . 4 . . Recyclers 2 | . 1 . 1 . . Mask 2 | . 1 . 1 . . Tunnel 1 | . . . 1 . . Fedlink 1 | . . . . . 1 Scrapoids 1 | . . . . . 1 Scanalyzers . | . . . . . . Garrison Access . | . . . . . . Data Cores Recovered . | . . . . . . Used . | . . . . . . Hacking Detections 17 | . 5 . 6 . 6 Full Trace Events 5 | . . . 3 . 2 Feedback Events . | . . . . . . Feedback Blocked . | . . . . . . Robot Schematics Acquired 3 | . 1 . . . 2 Robots Built 2 | . . . . . 2 Authchips 1 | . . . . . 1 Time 38 | . . . . . 38 Total Robot Build Rating 10 | . . . . . 10 Part Schematics Acquired 1 | . . . 1 . . Parts Built . | . . . . . . Authchips . | . . . . . . Time . | . . . . . . Total Part Build Rating . | . . . . . . Parts Repaired . | . . . . . . Time . | . . . . . . Parts Recycled . | . . . . . . Recycled Matter . | . . . . . . Retrieved Matter . | . . . . . . Retrieved Components 8 | . 5 . 3 . . Parts Scanalyzed . | . . . . . . Part Schematics Acquired . | . . . . . . Parts Damaged . | . . . . . . Bothacking | -11 -10 -10 -7 -7 -5 ------------ Run | Yrd Mat Sub Rec Scr Fac Used RIF Installer . | . . . . . . Robots Hacked . | . . . . . . Non-combat . | . . . . . . Combat . | . . . . . . Robot Hacks Applied . | . . . . . . Relay Couplers Released 2 | . . . . . 2 Machine Destruction 2 | . . . . . 2 Fabnet Peak Effective % . | . . . . . . Robots Rewired 5 | . . . 5 . . Allies Hacked . | . . . . . . Hacks Repelled . | . . . . . . Allies | -11 -10 -10 -7 -7 -5 -------- Run | Yrd Mat Sub Rec Scr Fac Total Allies 22 | . . 5 5 . 12 Largest Group 10 | . . 5 5 5 10 Highest-Rated Group 367 | . . 95 129 129 367 Highest-Rated Ally 50 | . . 19 40 40 50 Total Orders 7 | . . . . 2 5 STAY 3 | . . . . 1 2 FOLLOW 1 | . . . . 1 . EXPLORE 3 | . . . . . 3 Ally Attacks 117 | . . 3 15 . 99 Total Damage 3223 | . . 186 686 . 2351 Kills 23 | . . 3 6 . 14 Allies Corrupted . | . . . . . . Allies Melted . | . . . . . . Intel | -11 -10 -10 -7 -7 -5 ------- Run | Yrd Mat Sub Rec Scr Fac Robot Analysis Total 1 | . 1 . . . . Derelict Logs Recovered 4 | . . 1 . 3 . Drone Launches 4 | . . . . . 4 Drone Recoveries 2 | . . . . . 2 Exploration | -11 -10 -10 -7 -7 -5 ------------- Run | Yrd Mat Sub Rec Scr Fac Turns Passed 12578 | 92 621 902 1085 7122 2756 Spaces Moved 6029 | 63 413 762 727 2658 1406 Core 6 | 6 . . . . . Treads 3006 | . . . 309 2408 289 Legs . | . . . . . . Wheels 3017 | 57 413 762 418 250 1117 Hover . | . . . . . . Flight . | . . . . . . Fastest Speed 50 | 50 90 95 107 120 80 Average Speed 182 | 86 100 99 129 263 130 Slowest Speed 557 | 90 105 107 160 557 240 Overloaded Moves . | . . . . . . Propulsion Burnouts . | . . . . . . Robots Hopped . | . . . . . . Cave-ins Triggered . | . . . . . . Exploration Rate (%) 53 | 4 56 39 93 94 34 Regions Visited 5 Branch Regions 3 Pre-discovered Areas 2 | . . . 1 1 . Known Exits Taken . | . . . . . . Unknown Exits Taken 5 | 1 1 1 1 1 . Scrap Searched 11 | . . . . 11 . Spaces Dug 9 | . . . . . 9 Terrain Destroyed 204 | 7 . . . . 197 Melee 9 | . . . . . 9 Projectile 16 | . . . . . 16 AOE 179 | 7 . . . . 172 Terrain Rammed . | . . . . . . Walls Destroyed . | . . . . . . Machines Disabled . | . . . . . . Actions | -11 -10 -10 -7 -7 -5 --------- Run | Yrd Mat Sub Rec Scr Fac Total 7266 | 94 601 839 840 2779 2113 Wait 607 | 8 159 23 48 6 363 Move 6024 | 62 412 761 726 2657 1406 Hop . | . . . . . . Pick Up 178 | 14 12 8 8 63 73 Fast Attach . | . . . . . . Attach 53 | 7 . . 1 3 42 Detach 2 | . . . . . 2 Swap 62 | . 5 7 6 15 29 Drop 122 | . 4 10 8 35 65 Fire 164 | 3 9 30 20 . 102 Melee 31 | . . . . . 31 Ram . | . . . . . . Kick . | . . . . . . Crush . | . . . . . . Escape Stasis . | . . . . . . Rewire 23 | . . . 23 . . Trap . | . . . . . . Miscellaneous . | . . . . . . Route ------- -11/Scrapyard -10/Materials (discovered 3 exits: [*Mat x2] / *Sub) -10/Subcaves -7/Recycling (discovered 2 exits: *Fac / *Scr) -7/Scraptown (discovered 2 exits: *Fac x2) -5/Factory (discovered 2 exits: Fac / [*Upp]) History --------- Turn | Location | Event 2 | -11/Scrapyard | Met Revision 17 6 | -11/Scrapyard | Discovered new exit (range 16) 93 | -11/Scrapyard | Entered Materials 144 | -10/Materials | Discovered new exit (range 9) 244 | -10/Materials | Discovered new exit (range 15) 300 | -10/Materials | Build established: Mutant 706 | -10/Materials | Discovered new exit (range 8) 714 | -10/Materials | Entered Subcaves 886 | -10/Subcaves | Shifting Twisted Machinery released Riot Gun 886 | -10/Subcaves | Shifting Twisted Machinery released Battle Rifle 913 | -10/Subcaves | Learned 2 Materials zone layouts 981 | -10/Subcaves | Visited triangular shrine 988 | -10/Subcaves | Found Prototype Device 989 | -10/Subcaves | Identified V3-11A's Pendant 994 | -10/Subcaves | Befriended Subdweller 1234 | -10/Subcaves | Befriended Subdweller 1308 | -10/Subcaves | Ambushed by Subdwellers from Twisted Machinery 1309 | -10/Subcaves | Befriended Subdweller 1309 | -10/Subcaves | Befriended Subdweller 1399 | -10/Subcaves | Visited 4L-MR0's lab 1415 | -10/Subcaves | Found Powered Cannon 1566 | -10/Subcaves | Discovered new exit (range 14) 1584 | -10/Subcaves | Befriended Subdweller 1616 | -10/Subcaves | Entered Recycling 1616 | -7/Recycling | Accompanied by 5 allies 1617 | -7/Recycling | Met a Zionite searching for Scraptown 1900 | -7/Recycling | Scanned before Scraplab entrance 2151 | -7/Recycling | Lost 5 allies 2174 | -7/Recycling | Discovered new exit (range 11) 2452 | -7/Recycling | Build established: Scavenger-Mutant 2665 | -7/Recycling | Entered Scraplab 2686 | -7/Recycling | Discovered new exit (range 2) 2701 | -7/Recycling | Entered Scraptown 2701 | -7/Scraptown | Accompanied by 5 allies 3149 | -7/Scraptown | Visited Assassins FH 3166 | -7/Scraptown | Build established: Commander-Mutant 3199 | -7/Scraptown | Visited Bundlers 3375 | -7/Scraptown | Visited Cave Peace 3426 | -7/Scraptown | Visited Artisan Demo Area 3477 | -7/Scraptown | Visited Comm Corps 3882 | -7/Scraptown | Visited TADAMA 3943 | -7/Scraptown | Scanned Subdweller tech in exchange for log data 3946 | -7/Scraptown | Learned location of 1 exit from Factory 3950 | -7/Scraptown | Learned Factory emergency access door positions 3998 | -7/Scraptown | Discovered new exit (range 7) 4241 | -7/Scraptown | Visited The Evicted 4284 | -7/Scraptown | Visited UFD Registry 4284 | -7/Scraptown | Registered with UFD as "Shadowshaft" 4375 | -7/Scraptown | Visited Science Testing Area 4899 | -7/Scraptown | Visited Observation Area 5089 | -7/Scraptown | Visited A0-MCA Data Center 5099 | -7/Scraptown | Given an A- rating by A0-MCA 5103 | -7/Scraptown | Found A0-MCA's Component Scanner 5168 | -7/Scraptown | Visited Science Guys 5226 | -7/Scraptown | Visited Abandonware Association 5259 | -7/Scraptown | Learned abandonware demo "MELTYB.EXE" 5650 | -7/Scraptown | Build established: Hauler-Mutant 7516 | -7/Scraptown | Delivered Scrap Shield to a Scientist 8061 | -7/Scraptown | Visited Infowarlord's Domain 8193 | -7/Scraptown | Visited Scrapoid Pod Storage 8217 | -7/Scraptown | Found Scrapoid Pod 8277 | -7/Scraptown | Visited Curators Association 8446 | -7/Scraptown | Visited DA-N13 Charitable Foundation 8476 | -7/Scraptown | Found DCF Scrap (26 items) 8870 | -7/Scraptown | Discovered new exit (range 3) 8911 | -7/Scraptown | Found Scrap Suit 8933 | -7/Scraptown | Found Scrap Suit 9823 | -7/Scraptown | Entered Factory 9823 | -5/Factory | Accompanied by 5 allies 9823 | -5/Factory | Evolved 10 slots: Power x1, Propulsion x4, Utility x4, Weapon x1 9824 | -5/Factory | Identified exit to Factory 10142 | -5/Factory | Found Imp. Powered Armor 10575 | -5/Factory | Build established: Derelict-Mutant 10777 | -5/Factory | Scrapoid Pod released 05F05-D (x5) 11421 | -5/Factory | Destroyed 7 combat bots 11507 | -5/Factory | Garrison activated, responded to threat 11550 | -5/Factory | Destroyed 9 combat bots 11616 | -5/Factory | Build established: Hauler-Scrapper 11688 | -5/Factory | Discovered new exit (range 45) 11946 | -5/Factory | Scrapoids reinforcements arrived? 12045 | -5/Factory | Fabricated H-66 Slayer (x2) 12523 | -5/Factory | First assault squad dispatched 12531 | -5/Factory | Core integrity fell below 50% 12534 | -5/Factory | Core integrity fell below 20% 12579 | -5/Factory | Destroyed by G-67 Veteran with Field Laser Last Messages --------------- 12552_ Knocked back. 12552_ Critical hit (Burn: +37). 12556_ Knocked back. 12557_ Adv. Heat Sink destroyed. 12559_ M-28 Smith repairs Welding Torch. 12560_ U-05 Engineer works on Assembly Bed. 12560_ Knocked back. 12563_ Critical hit (Burn: +37). 12564_ Neutrino Core destroyed. 12564_ Critical hit (Burn: +37). 12567_ Ovr. Huge Scrapsphere destroyed. 12567_ System corrupted by crushing effect (+3). 12567_ Knocked back. 12568_ M-28 Smith repairs G-50 Soldier. 12570_ System corrupted: Matter fused (-5). 12575_ Critical hit (Smash). 12575_ Ovr. Huge Scrapsphere destroyed. 12575_ System corrupted by crushing effect (+1). 12576_ U-05 Engineer destroyed. 12578_ K-01 Serf collects debris. Map ----- +----------------------------------------------------+ | ?????????????#![![!! """ # ! #| # #?? | | ?????????????#[!!=%| """ #% ""# ##?? | | ?????????????# !* # # #?? | | ?????????##### ###### #### | | ? ?? ???+ +[ ! # # | | ? ?##### ! ###### ! = #? | | "## % #######???# %! ###? | | " #= #????????# #[*! ##??? | | #% #????????###! [%! #???? | | ##%= ############="=# # # ###???? | | # = = %= !!*[ [ ! #####?????? | | =%= [ %[ ! =* [= #?????????? | | ? == ! [ #?????????? | | ? #?????????? | | ? ! #?????????? | | ?? #?????????? | | ??# % #?????????? | | ??? #################### #?????????? | | #######+####???????# ! ! #?# #?????????? | | ?? ??????#/!! / #?# #?????????? | | ?? ??????#/!! !!#?# #?????????? | | ?????#!! %% #?# #?????????? | | """ " ########+##u##?# #?????????? | | """ """%+ g mu! u #??# ########### | | """ ???????# g kg #??# # | | ?????????# u [ b@ #??# # | | ???? g [mg #??# # | | ??? ! ####### u#??# # | | +#############????????# #??# # | | #????????# #??# # [ | | #????????# #??# + """" | | #??####### #??# # """" | | #??# ## ##?# # """" | | #??# "" # #?# # ! """" | | #??# "" # ### # | | #??# "" # " # | | ## ######+##+#### "Y + "T ########### | | ##+# # "" # #?????????? | | # # "" # ### #?????????? | | " # """ # "" # #?# #?????????? | | " # """"" # ### ###?# #?????????? | | " !# """"" ######?# #???# #?????????? | | # #??????# #???# #?????????? | | # """ %#??????# #???# #?????????? | | #### " """ #?###### #???# #?????????? | | + "" "" ### #???# #?????????? | | # + #???#^ ^ ^#?????????? | | # = ### #???# ##????????? | | + [ #?# ######???# T#????????? | | ###############+### #????????# #????????? | +----------------------------------------------------+ Best States ------------- Heat Dissipation 59 Energy Generation 35 Energy Capacity 565 Matter Stores 300 Matter Capacity 300 Sight Range 18 Terrain Scan Density 10 Armor Coverage 400 Resistance: KI 20 Resistance: TH 20 Resistance: EX 20 Resistance: EM 20 Resistance: I 20 Resistance: S 20 Resistance: P 20 Evasion (%) 44 Targeting Accuracy 8 Recoil Reduction 6 Offensive Hacking 32 Defensive Hacking 12 Authchip Count 1 Item Schematics ----------------- Imp. Carbon-fiber Leg | -7/Recycling | Hacked Robot Schematics ------------------ M-13 Machinist | -10/Materials | Hacked M-28 Smith | -5/Factory | Hacked H-66 Slayer | -5/Factory | Hacked Fabricated ------------ H-66 Slayer | x2 | -5/Factory | Authchip Alien Tech Used ----------------- None Achievements -------------- Novice Programmer Challenges ------------ None Game ------ Seed NeutrinoDispersionBrace Manual? 0 Play Time 01:29:35 Cumulative 545.7 hours Start 2024.08.07 @ 09:58:46 End 2024.08.07 @ 11:31:27 Sessions 1 Manual Loads 0 Difficulty Adventurer Special Mode None Game No. 101 Rogue 0 Adventurer 101 Explorer 0 Win Type - Total 7 Types 4/0/1/2/0/0/0/0/0 Lore% 48 Gallery% 77 Achievement% 70 Wizard Run 0 Options --------- Layout 2 ASCII 0 Keyboard 0 Movement Mouse Keybinds 0 Fullscreen 1 Font 24/Smallcaps Map View 50x49 Zoom Use 7% Tactical HUD 1 Map Filters NONE Filters NONE Steam 1 RUN: 5f601d40-78a1-4729-a84c-5888e62e921a